fUST/lending_fUST_20251129
["ID","MTS","AMOUNT","RATE_DAILY","PERIOD"]
[395057323,1764384638198,-4740.22597796,0.00013394,2]
[395057329,1764384638240,-6398.00871404,0.00013394,2]
[395057447,1764384640194,-62164.8588326,0.00013394,2]
[395057648,1764384643020,-864.25993361,0.00013394,2]
[395057667,1764384645418,1241.50781428,0.00013294,2]
[395057674,1764384645977,-3903.3592,0.00013294,2]
[395057685,1764384670703,181.66756771,8.907e-05,2]
[395057686,1764384671325,181.66756771,0.00012629,2]
[395057687,1764384702669,181.828,0.00013126,2]
[395057688,1764384702700,10000.0,0.0002,32]
[395057689,1764384732021,233.43951072,0.00012488,2]
[395057690,1764384738211,325.92109025,0.00013161,2]
[395057694,1764385177091,555.0,0.000215,120]
[395057697,1764385264315,12239.0,0.000215,120]
[395057700,1764385393985,386.46982198,0.00014,10]
[395057702,1764385547130,-165.52186014,0.00013057,2]
[395057703,1764385547156,-1277.72028835,0.00013173,2]
[395057704,1764385644078,-198.44766866,0.00012147,2]
[395057705,1764385644099,-38.24747223,0.0001227,2]
[395057706,1764385645072,-261.11817217,0.0001227,2]
[395057707,1764385645094,-668.83389658,0.00013041,2]
[395057708,1764385645116,-185.98055851,0.00013172,2]
[395057709,1764385645136,-300.0,0.00013172,2]
[395057710,1764385645158,-1397.68487706,0.00013173,2]
[395057711,1764385646294,-6205.61423894,0.00013173,2]
[395057712,1764385653080,-1220.00857423,0.00013173,2]
[395057715,1764385755088,-165.52186014,0.00013189,2]
[395057716,1764385755109,-300.0,0.00013198,2]
[395057717,1764385755128,-15482.39427301,0.00013199,2]
[395057718,1764385758086,-34517.60572699,0.00013199,2]
[395057719,1764385758109,-1200.0,0.00013199,2]
[395057720,1764385758139,-260.0,0.00013199,2]
[395057721,1764385758159,-500.0,0.00013199,2]
[395057722,1764385758181,-500.0,0.00013199,2]
[395057723,1764385758200,-500.0,0.00013199,2]
[395057724,1764385758220,-500.0,0.00013199,2]
[395057725,1764385758239,-500.0,0.00013199,2]
[395057726,1764385758259,-500.0,0.00013199,2]
[395057727,1764385758280,-500.0,0.00013199,2]
[395057728,1764385758302,-500.0,0.00013199,2]
[395057729,1764385758325,-472.4047069,0.00013199,2]
[395057730,1764385758347,-500.0,0.00013199,2]
[395057731,1764385758368,-500.0,0.00013199,2]
[395057732,1764385758388,-500.0,0.00013199,2]
[395057733,1764385758408,-500.0,0.00013199,2]
[395057734,1764385758428,-500.0,0.00013199,2]
[395057735,1764385758448,-500.0,0.00013199,2]
[395057736,1764385758469,-500.0,0.00013199,2]
[395057737,1764385758489,-500.0,0.00013199,2]
[395057738,1764385758508,-200.0,0.00013199,2]
[395057739,1764385758528,-500.0,0.00013199,2]
[395057740,1764385758547,-500.0,0.00013199,2]
[395057741,1764385758566,-500.0,0.00013199,2]
[395057742,1764385758586,-500.0,0.00013199,2]
[395057743,1764385758606,-500.0,0.00013199,2]
[395057744,1764385758627,-329.82067183,0.00013199,2]
[395057745,1764385758647,-500.0,0.00013199,2]
[395057746,1764385758668,-500.0,0.00013199,2]
[395057747,1764385758688,-500.0,0.00013199,2]
[395057748,1764385758708,-500.0,0.00013199,2]
[395057749,1764385758727,-13791.63033357,0.000132,2]
[395057750,1764385758753,-5694.40837304,0.000132,2]
[395057751,1764385760065,-4320.72092223,0.000132,2]
[395057777,1764385832063,-300.0,0.00013199,2]
[395057779,1764385832072,-111.45191728,0.00013199,2]
[395057936,1764385838130,-188.54808272,0.00013199,2]
[395057937,1764385838140,-300.0,0.00013199,2]
[395057939,1764385838149,-300.0,0.00013199,2]
[395057940,1764385838159,-1200.0,0.00013199,2]
[395057941,1764385838168,-150.0,0.00013199,2]
[395057942,1764385838178,-616.08482208,0.000132,2]
[395057943,1764385838205,-4167.96378097,0.000132,2]
[395057944,1764385838293,-689.51269321,0.000132,2]
[395057989,1764385840240,-2665.76654565,0.000132,2]
[395057991,1764385840253,-394.56133503,0.000132,2]
[395057993,1764385840264,-1958.73348659,0.000132,2]
[395057995,1764385840273,-258.0,0.000132,2]
[395057997,1764385840282,-194.72792766,0.00013265,2]
[395057999,1764385840291,-666.0,0.00013265,2]
[395058001,1764385840301,-500.0,0.00013271,2]
[395058003,1764385840310,-221.40329187,0.00013271,2]
[395058005,1764385840320,-341.04378769,0.00013271,2]
[395058007,1764385840329,-215.56863512,0.00013271,2]
[395058009,1764385840338,-14315.96705001,0.00013273,2]
[395058011,1764385840348,-2536.14255522,0.00013273,2]
[395058297,1764385843388,-25211.09556689,0.00013273,2]
[395058603,1764385846343,-312.62416715,0.00013273,2]
[395060467,1764385870017,181.96675169,0.00012446,2]
[395060471,1764385902634,181.828,0.00013007,2]
[395060472,1764385932122,-9171.68577895,0.00013173,2]
[395060473,1764385932145,-500.0,0.00013272,2]
[395060474,1764385932167,-500.0,0.00013272,2]
[395060475,1764385932190,-336.64674131,0.00013272,2]
[395060476,1764385932211,-300.0,0.00013272,2]
[395060477,1764385932234,-239191.66747974,0.00013273,2]
[395060478,1764385953413,229.5603825,8.907e-05,2]
[395060496,1764386685310,849.0,0.0002,30]
[395060497,1764386739639,160.00099414,9.197e-05,2]
[395060498,1764386743133,-160.00099414,9.29e-05,2]
[395060499,1764386743155,-65.76886728,9.384e-05,2]
[395060502,1764386825079,-94.23212686,9.384e-05,2]
[395060503,1764386825100,-150.0,9.577e-05,2]
[395060504,1764386825122,-230.0,9.77e-05,2]
[395060505,1764386825141,-261.6737417,0.00010652,2]
[395060506,1764386825160,-45.01085492,0.00010697,2]
[395060511,1764386961207,-178.56570707,0.0001059,2]
[395060512,1764386961229,-184.54952758,0.00010697,2]
[395060513,1764386961250,-2000.0,0.0001095,2]
[395060514,1764386961271,-177.0,0.00011577,2]
[395060515,1764386961292,-394.16160552,0.00011827,2]
[395060516,1764386961312,-450.47040631,0.00011827,2]
[395060517,1764386961332,-703.15614984,0.00011827,2]
[395060518,1764386961351,-185.95555613,0.00012348,2]
[395060519,1764386961371,-310.3547728,0.00012362,2]
[395060520,1764386961391,-300.0,0.00012438,2]
[395060521,1764386961410,-1200.0,0.00012439,2]
[395060522,1764386961430,-50000.0,0.0001244,2]
[395060523,1764386961451,-1200.0,0.00012448,2]
[395060524,1764386961471,-300.0,0.00012485,2]
[395060525,1764386961495,-300.0,0.00012485,2]
[395060526,1764386961516,-300.0,0.00012485,2]
[395060527,1764386961537,-229.5603825,0.00012487,2]
[395060528,1764386961558,-500.0,0.00012487,2]
[395060529,1764386961579,-386.9299915,0.000125,2]
[395060530,1764386961600,-396.7820932,0.00012541,2]
[395060531,1764386961620,-192.1414241,0.00012678,2]
[395060532,1764386961641,-396.7820932,0.00012741,2]
[395060533,1764386961660,-500.0,0.00012761,2]
[395060534,1764386961682,-500.0,0.00012814,2]
[395060535,1764386961703,-514.1355459,0.00012814,2]
[395060536,1764386961725,-500.0,0.00012814,2]
[395060537,1764386961745,-233.9553166,0.00012814,2]
[395060538,1764386961766,-500.0,0.00012814,2]
[395060539,1764386961786,-289.08232514,0.00012814,2]
[395060540,1764386961806,-500.0,0.00012814,2]
[395060541,1764386961826,-638.83720902,0.00012814,2]
[395060542,1764386961846,-500.0,0.00012814,2]
[395060543,1764386961866,-500.0,0.00012814,2]
[395060544,1764386961888,-500.0,0.00012814,2]
[395060545,1764386961908,-349.67901118,0.00012814,2]
[395060546,1764386961929,-500.0,0.00012814,2]
[395060547,1764386961949,-500.0,0.00012814,2]
[395060548,1764386961970,-500.0,0.00012814,2]
[395060549,1764386961990,-500.0,0.00012814,2]
[395060550,1764386962010,-500.0,0.00012814,2]
[395060551,1764386962031,-500.0,0.00012814,2]
[395060552,1764386962052,-500.0,0.00012814,2]
[395060553,1764386962074,-500.0,0.00012814,2]
[395060554,1764386962096,-500.0,0.00012814,2]
[395060555,1764386962117,-500.0,0.00012814,2]
[395060556,1764386962138,-500.0,0.00012814,2]
[395060557,1764386962158,-500.0,0.00012814,2]
[395060558,1764386962179,-500.0,0.00012814,2]
[395060559,1764386962200,-500.0,0.00012814,2]
[395060560,1764386962222,-500.0,0.00012814,2]
[395060561,1764386962243,-500.0,0.00012814,2]
[395060562,1764386962264,-500.0,0.00012814,2]
[395060563,1764386962530,-500.0,0.00012814,2]
[395060564,1764386962554,-500.0,0.00012814,2]
[395060565,1764386962576,-500.0,0.00012814,2]
[395060566,1764386962598,-500.0,0.00012814,2]
[395060567,1764386962618,-192.1414241,0.00012878,2]
[395060568,1764386962638,-192.1414241,0.00012878,2]
[395060569,1764386962658,-192.1414241,0.00012878,2]
[395060570,1764386962678,-192.1414241,0.00012878,2]
[395060571,1764386962698,-192.1414241,0.00012878,2]
[395060572,1764386962717,-383.6546674,0.00012878,2]
[395060573,1764386962737,-8025.22505652,0.000129,2]
[395060574,1764386962755,-386.1276493,0.00012978,2]
[395060575,1764386962775,-192.1414241,0.00012978,2]
[395060576,1764386962795,-192.1414241,0.00012978,2]
[395060577,1764386962814,-500.0,0.00013035,2]
[395060578,1764386962833,-220.39305008,0.00013072,2]
[395060579,1764386962857,-666.0,0.00013111,2]
[395060580,1764386962878,-185.658,0.00013111,2]
[395060581,1764386968387,500.0,0.00012814,2]
[395060582,1764386968812,41.1823307,0.00013088,2]
[395060583,1764386968832,458.8176693,0.00013088,2]
[395060584,1764386973080,-194.72792766,0.00013164,2]
[395060585,1764386973101,-249.57629953,0.00013171,2]
[395060586,1764386973122,-500.89804459,0.00013171,2]
[395060587,1764386973142,-238.73065139,0.00013171,2]
[395060588,1764386973378,-167.11145597,0.00013171,2]
[395060589,1764386973400,-192.5692413,0.00013171,2]
[395060590,1764386973424,-1096.25015764,0.00013172,2]
[395060591,1764386997570,500.0,0.00019178,120]
[395060592,1764387013640,194.72792766,0.00012479,2]
[395060593,1764387014048,666.0,0.00012861,2]
[395060594,1764387014273,201.93286099,0.00013027,2]
[395060605,1764387032251,-300.0,0.00013171,2]
[395060606,1764387032261,-300.0,0.00013171,2]
[395060607,1764387032271,-300.0,0.00013171,2]
[395060608,1764387032280,-1200.0,0.00013171,2]
[395060609,1764387032289,-300.0,0.00013171,2]
[395060610,1764387032297,-258.0,0.00013171,2]
[395060611,1764387032306,-61422.23483385,0.00013172,2]
[395060612,1764387032317,-45759.29548366,0.00013172,2]
[395060613,1764387032331,-525.16305468,0.00013172,2]
[395060614,1764387032342,-1123.02642622,0.00013172,2]
[395060615,1764387032418,-947.8835229,0.00013172,2]
[395060650,1764387038407,-500.0,0.00013171,2]
[395060652,1764387038417,-500.0,0.00013171,2]
[395060653,1764387038426,-483.29766791,0.00013171,2]
[395060654,1764387038436,-1951.68233209,0.00013172,2]
[395060657,1764387038463,-2500.0,0.00013172,2]
[395060658,1764387038473,-30894.76452898,0.00013172,2]
[395060659,1764387038513,-2456.51255041,0.00013172,2]
[395060660,1764387038524,-3390.92,0.00013172,2]
[395060684,1764387046504,-765.71456297,0.00013172,2]
[395060685,1764387070698,309.1352021,8.907e-05,2]
[395060686,1764387071316,309.1352021,0.00010604,2]
[395060687,1764387071982,309.1352021,0.00012302,2]
[395060688,1764387102670,156.852,0.00012909,2]
[395060689,1764387123135,148.40541935,0.000131,2]
[395060696,1764387336934,500.0,0.00019178,120]
[395060702,1764387674124,500.0,0.00019178,120]
[395060703,1764387951088,-156.852,0.00012683,2]
[395060704,1764387951107,-156.852,0.00012811,2]
[395060705,1764387951129,-150.0,0.00012842,2]
[395060706,1764387951148,-256.0,0.00012872,2]
[395060707,1764387951170,-194.72792766,0.00013064,2]
[395060708,1764387951189,-512.86632041,0.00013064,2]
[395060709,1764387970727,206.43350383,8.907e-05,2]
[395060710,1764388002465,500.0,0.00019178,120]
[395060712,1764388032081,-206.43350383,0.00012158,2]
[395060713,1764388032102,-153.13367959,0.00012934,2]
[395060714,1764388032123,-3579.8425518,0.00012971,2]
[395060715,1764388047078,-946.71191798,0.00012841,2]
[395060716,1764388047099,-317.27356776,0.00012971,2]
[395060721,1764388145077,-3988.76196084,0.00012971,2]
[395060722,1764388145100,-150.0,0.00013018,2]
[395060723,1764388145122,-153.13367959,0.00013064,2]
[395060724,1764388145144,-1200.0,0.00013068,2]
[395060725,1764388145168,-500.0,0.00013069,2]
[395060726,1764388145192,-500.0,0.00013069,2]
[395060727,1764388145213,-500.0,0.00013069,2]
[395060728,1764388145234,-414.97302153,0.00013069,2]
[395060729,1764388145254,-500.0,0.00013069,2]
[395060730,1764388145494,-500.0,0.00013069,2]
[395060731,1764388145515,-500.0,0.00013069,2]
[395060732,1764388145538,-500.0,0.00013069,2]
[395060733,1764388145558,-489.34959607,0.00013069,2]
[395060734,1764388145579,-500.0,0.00013069,2]
[395060735,1764388145601,-500.0,0.00013069,2]
[395060736,1764388145621,-314.82118358,0.00013069,2]
[395060737,1764388145643,-500.0,0.00013069,2]
[395060738,1764388145666,-500.0,0.00013069,2]
[395060739,1764388145687,-500.0,0.00013069,2]
[395060740,1764388145709,-500.0,0.00013069,2]
[395060741,1764388145729,-614.58441752,0.00013069,2]
[395060742,1764388145753,-500.0,0.00013069,2]
[395060743,1764388145775,-500.0,0.00013069,2]
[395060744,1764388145796,-500.0,0.00013069,2]
[395060745,1764388145818,-500.0,0.00013069,2]
[395060746,1764388145840,-500.0,0.00013069,2]
[395060747,1764388145861,-500.0,0.00013069,2]
[395060748,1764388145882,-500.0,0.00013069,2]
[395060749,1764388145904,-500.0,0.00013069,2]
[395060750,1764388145926,-500.0,0.00013069,2]
[395060751,1764388145950,-500.0,0.00013069,2]
[395060752,1764388145972,-500.0,0.00013069,2]
[395060753,1764388145993,-500.0,0.00013069,2]
[395060754,1764388146014,-500.0,0.00013069,2]
[395060755,1764388146036,-500.0,0.00013069,2]
[395060756,1764388146058,-500.0,0.00013069,2]
[395060757,1764388146081,-500.0,0.00013069,2]
[395060758,1764388146103,-500.0,0.00013069,2]
[395060759,1764388146124,-620.29832788,0.00013069,2]
[395060760,1764388146145,-500.0,0.00013069,2]
[395060761,1764388146166,-500.0,0.00013069,2]
[395060762,1764388146188,-500.0,0.00013069,2]
[395060763,1764388146211,-300.0,0.00013069,2]
[395060764,1764388146232,-300.0,0.00013069,2]
[395060765,1764388146253,-300.0,0.00013069,2]
[395060766,1764388146276,-1200.0,0.00013069,2]
[395060767,1764388146295,-50000.0,0.0001307,2]
[395060768,1764388146314,-257.52596505,0.00013071,2]
[395060769,1764388146334,-485.42710012,0.00013071,2]
[395060770,1764388146357,-404.5047905,0.00013072,2]
[395060771,1764388146489,-38838.59629556,0.00013072,2]
[395060772,1764388172127,-300.0,0.00013068,2]
[395060773,1764388172149,-3031.05255229,0.00013072,2]
[395060774,1764388173092,-2785.54876551,0.00013072,2]
[395060780,1764388232375,-666.0,0.00013064,2]
[395060781,1764388232384,-194.72792766,0.00013064,2]
[395060782,1764388232393,-300.0,0.00013071,2]
[395060783,1764388232403,-178.0,0.00013071,2]
[395060784,1764388232412,-182.49415591,0.00013071,2]
[395060785,1764388232423,-74.50584409,0.00013071,2]
[395060786,1764388232433,-1200.0,0.00013071,2]
[395060787,1764388232442,-290.50937972,0.00013071,2]
[395060788,1764388232451,-500.0,0.00013071,2]
[395060789,1764388232460,-500.0,0.00013071,2]
[395060790,1764388232470,-412.02983279,0.00013071,2]
[395060791,1764388232480,-5093.62031668,0.00013072,2]
[395060793,1764388232514,-331.99245047,0.00013072,2]
[395060858,1764388238539,-2196.29875058,0.00013072,2]
[395060860,1764388238551,-861.4296,0.00013072,2]
[395060865,1764388238593,-47719.00131602,0.00013072,2]
[395060868,1764388238605,-3811.66792024,0.00013072,2]
[395060870,1764388238617,-33161.10015468,0.00013072,2]
[395060872,1764388238628,-17265.45424673,0.00013072,2]
[395061162,1764388302723,156.852,0.00012811,2]
[395061163,1764388334242,500.0,0.00019178,120]
[395061164,1764388497053,242.99810403,9.111e-05,2]
[395061181,1764388664063,500.0,0.00019178,120]
[395061182,1764388992869,500.0,0.00019178,120]
[395061202,1764389158115,-1277.1122043,0.00011964,2]
[395061203,1764389158135,-576.04603936,0.000129,2]
[395061204,1764389226096,-207.05280434,0.00012043,2]
[395061205,1764389226116,-714.07026121,0.000129,2]
[395061206,1764389250069,-177.56168917,0.000129,2]
[395061207,1764389320153,500.0,0.00019178,120]
[395061208,1764389356076,-150.0,0.00012934,2]
[395061209,1764389356096,-256.0,0.00012946,2]
[395061210,1764389356116,-331.41465457,0.00012964,2]
[395061211,1764389363109,-334.58534543,0.00012964,2]
[395061212,1764389363130,-194.72792766,0.00012964,2]
[395061213,1764389363151,-1200.0,0.00012966,2]
[395061214,1764389363172,-300.0,0.00012966,2]
[395061215,1764389363191,-1001.03701468,0.00012967,2]
[395061216,1764389363211,-500.0,0.00012967,2]
[395061217,1764389363231,-228.10046448,0.00012967,2]
[395061218,1764389363251,-409.53590706,0.00012967,2]
[395061219,1764389363271,-500.0,0.00012967,2]
[395061220,1764389363292,-500.0,0.00012967,2]
[395061221,1764389363315,-500.0,0.00012967,2]
[395061222,1764389363336,-294.37152744,0.00012967,2]
[395061223,1764389363358,-500.0,0.00012967,2]
[395061224,1764389363378,-500.0,0.00012967,2]
[395061225,1764389363399,-500.0,0.00012967,2]
[395061226,1764389363420,-500.0,0.00012967,2]
[395061227,1764389363441,-195.32083169,0.00012967,2]
[395061228,1764389419394,1683.64882,0.000129,2]
[395061229,1764389419414,2297.01090111,0.000129,2]
[395061230,1764389419434,2333.34142389,0.000129,2]
[395061324,1764389439941,-503.74313605,0.000129,2]
[395061326,1764389439951,-407.33186395,0.00012961,2]
[395061687,1764389445720,-258.66813605,0.00012961,2]
[395061688,1764389445730,-194.72792766,0.00012964,2]
[395061689,1764389445740,-300.0,0.00012966,2]
[395061690,1764389445749,-300.0,0.00012966,2]
[395061691,1764389445759,-256.0,0.00012966,2]
[395061692,1764389445774,-290.78557512,0.00012966,2]
[395061714,1764389469341,181.99183774,0.00012154,2]
[395061715,1764389538216,179.25904803,8.907e-05,2]
[395061716,1764389548710,241.57605542,9.111e-05,2]
[395061718,1764389648504,500.0,0.00019178,120]
[395061734,1764389696394,242.40733062,9.111e-05,2]
[395061735,1764389978975,500.0,0.00019178,120]
[395061739,1764390258132,1000.0,0.0002,30]
[395061740,1764390289571,209.0,0.0002,120]
[395061741,1764390332126,-195.80460457,0.00010991,2]
[395061742,1764390332149,-3.05557059,0.00011102,2]
[395061743,1764390372649,179.34863276,8.907e-05,2]
[395061745,1764390433087,-192.74903398,0.00011102,2]
[395061746,1764390433109,-150.0,0.00011271,2]
[395061747,1764390433132,-45.27970291,0.00011441,2]
[395061748,1764390434075,-198.72029709,0.00011441,2]
[395061749,1764390434105,-110.86554886,0.00012799,2]
[395061750,1764390435151,-189.13445114,0.00012799,2]
[395061751,1764390435173,-709.97289489,0.00012799,2]
[395061753,1764390439073,-256.64941924,0.00012799,2]
[395061762,1764390564086,-300.0,0.00012759,2]
[395061763,1764390564105,-170.70432433,0.0001276,2]
[395061764,1764390564125,-389.55383199,0.0001276,2]
[395061765,1764390564146,-180.26817554,0.0001276,2]
[395061766,1764390564167,-500.0,0.0001276,2]
[395061767,1764390564189,-500.0,0.0001276,2]
[395061768,1764390564211,-500.0,0.0001276,2]
[395061769,1764390564235,-500.0,0.0001276,2]
[395061770,1764390564256,-500.0,0.0001276,2]
[395061771,1764390564279,-500.0,0.0001276,2]
[395061772,1764390564302,-627.68254452,0.0001276,2]
[395061773,1764390564325,-500.0,0.0001276,2]
[395061774,1764390564347,-34.29075396,0.0001276,2]
[395061775,1764390569064,-362.22573755,0.0001276,2]
[395061776,1764390569086,-500.0,0.0001276,2]
[395061777,1764390569106,-500.0,0.0001276,2]
[395061778,1764390569127,-500.0,0.0001276,2]
[395061779,1764390569149,-496.96054558,0.0001276,2]
[395061780,1764390570112,-3.03945441,0.0001276,2]
[395061781,1764390570134,-645.24494017,0.00012761,2]
[395061782,1764390609222,500.0,0.00019178,120]
[395061793,1764390631734,-300.0,0.0001276,2]
[395061794,1764390631743,-300.0,0.0001276,2]
[395061795,1764390631752,-255.0,0.0001276,2]
[395061796,1764390631761,-1200.0,0.0001276,2]
[395061797,1764390631770,-150.0,0.00012761,2]
[395061798,1764390631779,-75203.20132916,0.00012761,2]
[395061799,1764390631789,-146139.10049309,0.00012761,2]
[395061800,1764390631801,-803.50027286,0.00012761,2]
[395061802,1764390631849,-64.55716862,0.00012761,2]
[395061803,1764390631860,-334.45923056,0.00012761,2]
[395061832,1764390637906,-463.0,0.00012761,2]
[395061833,1764390637962,-8989.86636077,0.00012761,2]
[395061920,1764390646143,-28.51660214,0.00012761,2]
[395061921,1764390668685,308.84274485,8.907e-05,2]
[395061922,1764390669995,308.84274485,0.00012153,2]
[395061925,1764390702730,213.181,0.00012506,2]
[395061926,1764390737146,1917.33346208,0.00012572,2]
[395061927,1764390745910,319.42439026,0.00012572,2]
[395061944,1764390934838,500.0,0.00019178,120]
[395061947,1764390971080,196.52131072,8.907e-05,2]
[395061967,1764391634129,-853.15124835,0.00011229,2]
[395061968,1764391634149,-150.0,0.00011286,2]
[395061969,1764391634173,-853.15124835,0.00011342,2]
[395061970,1764391634195,-825.03833477,0.00011457,2]
[395061971,1764391636129,-173.96166523,0.00011457,2]
[395061972,1764391636150,-633.29614802,0.00011768,2]
[395061973,1764391636171,-246.0,0.00011768,2]
[395061974,1764391636192,-196.52131072,0.00012007,2]
[395061975,1764391636212,-300.0,0.00012659,2]
[395061976,1764391636232,-273.0,0.0001266,2]
[395061977,1764391636251,-206.33890585,0.0001266,2]
[395061979,1764391653072,-173.96166523,0.00011342,2]
[395061980,1764391653092,-93.66109415,0.0001266,2]
[395061981,1764391653112,-1200.0,0.0001266,2]
[395061982,1764391653132,-29.83944962,0.0001266,2]
[395061987,1764391750089,-1526.57395743,0.00012533,2]
[395061988,1764391750109,-1917.33346208,0.00012607,2]
[395061989,1764391750129,-300.0,0.00012658,2]
[395061990,1764391750151,-223.05622084,0.00012659,2]
[395062009,1764391831972,-500.0,0.00012653,2]
[395062010,1764391831981,-666.0,0.00012653,2]
[395062012,1764391831990,-515.01438263,0.00012653,2]
[395062014,1764391832000,-571.98404646,0.00012653,2]
[395062015,1764391832009,-500.0,0.00012653,2]
[395062017,1764391832018,-500.0,0.00012653,2]
[395062018,1764391832028,-166.38931329,0.00012653,2]
[395062020,1764391832037,-511.56705634,0.00012653,2]
[395062022,1764391832046,-194.72792766,0.00012653,2]
[395062023,1764391832056,-530.1030247,0.00012653,2]
[395062025,1764391832066,-500.0,0.00012658,2]
[395062027,1764391832075,-180.85361606,0.00012658,2]
[395062028,1764391832086,-500.0,0.00012658,2]
[395062030,1764391832094,-500.0,0.00012658,2]
[395062031,1764391832104,-544.05738795,0.00012658,2]
[395062033,1764391832113,-500.0,0.00012658,2]
[395062035,1764391832123,-649.27620543,0.00012658,2]
[395062036,1764391832132,-300.0,0.00012658,2]
[395062038,1764391832141,-254.0,0.00012658,2]
[395062040,1764391832152,-1200.0,0.00012658,2]
[395062041,1764391832161,-50000.0,0.00012659,2]
[395062043,1764391832170,-976.94377916,0.00012659,2]
[395062044,1764391832179,-272.6876824,0.0001266,2]
[395062046,1764391832188,-204.21481856,0.0001266,2]
[395062047,1764391832197,-70521.65146562,0.00012661,2]
[395062049,1764391832208,-113416.98553155,0.00012661,2]
[395062219,1764391838063,-12730.84885018,0.00012661,2]
[395062220,1764391838171,-225.45755887,0.00012661,2]
[395062221,1764391838202,-3335.44602688,0.00012661,2]
[395062222,1764391838214,-689769.6105669,0.00012661,2]
[395062223,1764391838224,-821.94894778,0.00012707,2]
[395062224,1764391838233,-162.0,0.0001274,2]
[395062225,1764391838243,-170.545,0.0001275,2]
[395062226,1764391838252,-690.8919129,0.00012758,2]
[395062227,1764391838261,-1000.0,0.000128,2]
[395062228,1764391838271,-1000.0,0.000128,3]
[395062229,1764391838281,-1000.0,0.000128,4]
[395062230,1764391838290,-153.0,0.000128,2]
[395062231,1764391838299,-153.0,0.000128,2]
[395062232,1764391838309,-164.9625808,0.000128,2]
[395062233,1764391838319,-164.9625808,0.000128,2]
[395062234,1764391838328,-719.4047558,0.000128,2]
[395062235,1764391838337,-596.0005209,0.000128,2]
[395062236,1764391838346,-1186.4918903,0.000128,2]
[395062237,1764391838356,-6335.9505441,0.00012899,2]
[395062238,1764391838365,-224.428497,0.000129,2]
[395062239,1764391838374,-5984.07692332,0.000129,2]
[395062240,1764391838384,-306.0,0.000129,2]
[395062241,1764391838394,-607.1386312,0.000129,2]
[395062242,1764391838404,-152.36165063,0.00012967,2]
[395062243,1764391838413,-159.546522,0.00013,2]
[395062244,1764391838423,-153.0,0.00013,2]
[395062245,1764391838432,-596.0005209,0.00013,2]
[395062246,1764391838442,-3390.4839103,0.00013031,2]
[395062247,1764391838451,-152.22408103,0.00013064,2]
[395062248,1764391838461,-151.61315386,0.00013064,2]
[395062249,1764391838470,-151.0,0.00013064,2]
[395062250,1764391838480,-500.0,0.00013064,2]
[395062251,1764391838490,-500.0,0.00013064,2]
[395062252,1764391838499,-151.0,0.00013064,2]
[395062253,1764391838509,-500.0,0.00013064,2]
[395062254,1764391838519,-151.47234653,0.00013064,2]
[395062255,1764391838530,-151.0,0.00013064,2]
[395062256,1764391838539,-151.0,0.00013064,2]
[395062257,1764391838548,-500.0,0.00013064,2]
[395062258,1764391838557,-500.0,0.00013064,2]
[395062259,1764391838566,-500.0,0.00013064,2]
[395062260,1764391838575,-500.0,0.00013064,2]
[395062261,1764391838584,-500.0,0.00013064,2]
[395062262,1764391838594,-151.0,0.00013064,2]
[395062263,1764391838603,-151.73273601,0.00013064,2]
[395062264,1764391838613,-500.0,0.00013064,2]
[395062265,1764391838622,-151.0,0.00013064,2]
[395062266,1764391838631,-500.0,0.00013064,2]
[395062267,1764391838640,-500.0,0.00013064,2]
[395062268,1764391838649,-151.0,0.00013064,2]
[395062269,1764391838658,-151.0,0.00013064,2]